[Event "Titled Tuesday Blitz November 15 Late 2022"]
[White "Adewumi, Tanitoluwa"]
[Black "Arnold, Ken"]
[WhiteFideId "30966396"]
[BlackFideId "2056836"]
[WhiteElo "2526"]
[BlackElo "2357"]
[Result "1-0"]
[Round "10"]
[TimeControl "180+1"]
[Date "2022.11.16"]
[WhiteClock "0:00:45"]
[BlackClock "0:00:39"]

1. e4 {[%clk 0:02:42]}  c6 {[%clk 0:02:59]} 2. d4 {[%clk 0:02:41]}  d5 {[%clk 0:02:59]} 3. exd5 {[%clk 0:02:41]}  cxd5 {[%clk 0:02:59]} 4. Bd3 {[%clk 0:02:42]}  Nf6 {[%clk 0:03:00]} 5. c3 {[%clk 0:02:41]}  Nc6 {[%clk 0:03:00]} 6. h3 {[%clk 0:02:40]}  h5 {[%clk 0:02:58]} 7. Nf3 {[%clk 0:02:40]}  g6 {[%clk 0:02:58]} 8. O-O {[%clk 0:02:40]}  Bg7 {[%clk 0:02:58]} 9. Re1 {[%clk 0:02:39]}  O-O {[%clk 0:02:58]} 10. Bg5 {[%clk 0:02:39]}  Bd7 {[%clk 0:02:50]} 11. Ne5 {[%clk 0:02:38]}  Nxe5 {[%clk 0:02:22]} 12. dxe5 {[%clk 0:02:39]}  Nh7 {[%clk 0:02:20]} 13. Bh4 {[%clk 0:01:53]}  Be6 {[%clk 0:02:19]} 14. Nd2 {[%clk 0:01:48]}  Qd7 {[%clk 0:02:18]} 15. Nb3 {[%clk 0:01:42]}  Bf5 {[%clk 0:02:10]} 16. Bxf5 {[%clk 0:01:21]}  Qxf5 {[%clk 0:02:09]} 17. Nd4 {[%clk 0:01:09]}  Qd7 {[%clk 0:01:55]} 18. e6 {[%clk 0:01:09]}  fxe6 {[%clk 0:01:45]} 19. Nxe6 {[%clk 0:01:09]}  Rf7 {[%clk 0:01:38]} 20. Qd3 {[%clk 0:01:04]}  Nf8 {[%clk 0:01:21]} 21. Nxf8 {[%clk 0:01:00]}  Raxf8 {[%clk 0:01:18]} 22. Qxg6 {[%clk 0:00:59]}  e5 {[%clk 0:01:08]} 23. Rxe5 {[%clk 0:00:51]}  Rf5 {[%clk 0:00:39]} 24. Re7 {[%clk 0:00:45]} 1-0


[Site "https://www.chess.com"]

[Event "Titled Tuesday Blitz November 15 Late 2022"]
[White "Aguilar, Juan"]
[Black "Rorrer, Grayson"]
[WhiteFideId "3800091"]
[BlackFideId "30944996"]
[WhiteElo "2473"]
[BlackElo "2130"]
[Result "0-1"]
[Round "10"]
[TimeControl "180+1"]
[Date "2022.11.16"]
[WhiteClock "0:00:02"]
[BlackClock "0:00:05"]

1. d4 {[%clk 0:03:00]}  Nf6 {[%clk 0:02:58]} 2. c4 {[%clk 0:03:01]}  e6 {[%clk 0:02:57]} 3. Nf3 {[%clk 0:03:01]}  Bb4+ {[%clk 0:02:58]} 4. Nbd2 {[%clk 0:03:00]}  b6 {[%clk 0:02:58]} 5. a3 {[%clk 0:02:59]}  Bxd2+ {[%clk 0:02:58]} 6. Bxd2 {[%clk 0:02:58]}  Bb7 {[%clk 0:02:59]} 7. Bg5 {[%clk 0:02:52]}  h6 {[%clk 0:02:58]} 8. Bh4 {[%clk 0:02:50]}  d6 {[%clk 0:02:59]} 9. e3 {[%clk 0:02:48]}  Nbd7 {[%clk 0:02:59]} 10. Be2 {[%clk 0:02:47]}  g5 {[%clk 0:02:59]} 11. Bg3 {[%clk 0:02:47]}  h5 {[%clk 0:03:00]} 12. h3 {[%clk 0:02:35]}  Rg8 {[%clk 0:02:48]} 13. Qc2 {[%clk 0:02:20]}  Ne4 {[%clk 0:02:38]} 14. Bh2 {[%clk 0:02:16]}  g4 {[%clk 0:02:31]} 15. hxg4 {[%clk 0:02:16]}  hxg4 {[%clk 0:02:31]} 16. Nd2 {[%clk 0:02:10]}  Nxd2 {[%clk 0:02:30]} 17. Kxd2 {[%clk 0:02:08]}  Nf6 {[%clk 0:02:26]} 18. f3 {[%clk 0:02:05]}  Qe7 {[%clk 0:02:16]} 19. Rae1 {[%clk 0:01:49]}  O-O-O {[%clk 0:02:15]} 20. Kc1 {[%clk 0:01:46]}  Kb8 {[%clk 0:02:14]} 21. Bd1 {[%clk 0:01:40]}  Rg6 {[%clk 0:02:04]} 22. e4 {[%clk 0:01:38]}  e5 {[%clk 0:01:59]} 23. Bg1 {[%clk 0:01:24]}  gxf3 {[%clk 0:01:47]} 24. gxf3 {[%clk 0:01:23]}  Nd7 {[%clk 0:01:45]} 25. f4 {[%clk 0:01:11]}  exf4 {[%clk 0:01:41]} 26. Rh5 {[%clk 0:01:02]}  Nf6 {[%clk 0:01:34]} 27. Rh4 {[%clk 0:00:57]}  Bxe4 {[%clk 0:01:32]} 28. Qf2 {[%clk 0:00:52]}  Qe6 {[%clk 0:01:23]} 29. d5 {[%clk 0:00:52]}  Qe5 {[%clk 0:00:57]} 30. Rxf4 {[%clk 0:00:46]}  Rg2 {[%clk 0:00:57]} 31. Qxg2 {[%clk 0:00:43]}  Qxf4+ {[%clk 0:00:57]} 32. Qd2 {[%clk 0:00:41]}  Qf5 {[%clk 0:00:57]} 33. Bd4 {[%clk 0:00:33]}  Ng4 {[%clk 0:00:46]} 34. Qe2 {[%clk 0:00:30]}  Qg5+ {[%clk 0:00:28]} 35. Qd2 {[%clk 0:00:29]}  Qg6 {[%clk 0:00:27]} 36. Rg1 {[%clk 0:00:26]}  f5 {[%clk 0:00:26]} 37. a4 {[%clk 0:00:23]}  Qe8 {[%clk 0:00:20]} 38. a5 {[%clk 0:00:23]}  Ne5 {[%clk 0:00:20]} 39. b3 {[%clk 0:00:14]}  Nd3+ {[%clk 0:00:14]} 40. Kb1 {[%clk 0:00:11]}  Nc5+ {[%clk 0:00:13]} 41. Kb2 {[%clk 0:00:10]}  Qe7 {[%clk 0:00:12]} 42. axb6 {[%clk 0:00:09]}  axb6 {[%clk 0:00:13]} 43. Bh5 {[%clk 0:00:05]}  Qh4 {[%clk 0:00:07]} 44. Be2 {[%clk 0:00:05]}  Qe7 {[%clk 0:00:04]} 45. Bxc5 {[%clk 0:00:04]}  dxc5 {[%clk 0:00:04]} 46. Ra1 {[%clk 0:00:04]}  Qe5+ {[%clk 0:00:04]} 47. Qc3 {[%clk 0:00:04]}  Qxc3+ {[%clk 0:00:05]} 48. Kxc3 {[%clk 0:00:05]}  f4 {[%clk 0:00:05]} 49. Rf1 {[%clk 0:00:05]}  Rf8 {[%clk 0:00:05]} 50. Bf3 {[%clk 0:00:03]}  Bf5 {[%clk 0:00:06]} 51. Re1 {[%clk 0:00:02]}  Kc8 {[%clk 0:00:05]} 52. Re7 {[%clk 0:00:02]}  Kd8 {[%clk 0:00:05]} 53. Rg7 {[%clk 0:00:02]}  Bd7 {[%clk 0:00:05]} 54. b4 {[%clk 0:00:02]}  Re8 {[%clk 0:00:05]} 0-1


[Site "https://www.chess.com"]

[Event "Titled Tuesday Blitz November 15 Late 2022"]
[White "Baskakov, Egor"]
[Black "Saveliev, Alexei"]
[WhiteFideId "24197866"]
[BlackFideId "24128546"]
[WhiteElo "2211"]
[BlackElo "2290"]
[Result "1-0"]
[Round "10"]
[TimeControl "180+1"]
[Date "2022.11.16"]
[WhiteClock "0:01:14"]
[BlackClock "0:00:02"]

1. e4 {[%clk 0:03:00]}  g6 {[%clk 0:03:00]} 2. g3 {[%clk 0:03:00]}  Bg7 {[%clk 0:02:57]} 3. Bg2 {[%clk 0:03:00]}  c5 {[%clk 0:02:56]} 4. Ne2 {[%clk 0:03:01]}  Nc6 {[%clk 0:02:56]} 5. O-O {[%clk 0:03:01]}  d6 {[%clk 0:02:56]} 6. h3 {[%clk 0:03:00]}  Nf6 {[%clk 0:02:56]} 7. d4 {[%clk 0:03:00]}  cxd4 {[%clk 0:02:56]} 8. Nxd4 {[%clk 0:03:01]}  O-O {[%clk 0:02:54]} 9. Ne2 {[%clk 0:02:58]}  Qc7 {[%clk 0:02:47]} 10. Nbc3 {[%clk 0:02:58]}  a6 {[%clk 0:02:48]} 11. Nd5 {[%clk 0:02:56]}  Nxd5 {[%clk 0:02:47]} 12. exd5 {[%clk 0:02:57]}  Ne5 {[%clk 0:02:45]} 13. a4 {[%clk 0:02:58]}  Bf5 {[%clk 0:02:31]} 14. Nd4 {[%clk 0:02:57]}  Bd7 {[%clk 0:02:11]} 15. b3 {[%clk 0:02:52]}  Qc3 {[%clk 0:02:11]} 16. Be3 {[%clk 0:02:48]}  Bf5 {[%clk 0:02:05]} 17. a5 {[%clk 0:02:30]}  Rac8 {[%clk 0:02:01]} 18. Ra2 {[%clk 0:02:29]}  Bd7 {[%clk 0:01:21]} 19. Ne2 {[%clk 0:02:22]}  Qb4 {[%clk 0:01:16]} 20. c4 {[%clk 0:02:22]}  Bf5 {[%clk 0:00:57]} 21. Ra4 {[%clk 0:02:12]}  Qxa4 {[%clk 0:00:47]} 22. bxa4 {[%clk 0:02:12]}  Nxc4 {[%clk 0:00:40]} 23. Bd4 {[%clk 0:02:12]}  Nxa5 {[%clk 0:00:35]} 24. Bxg7 {[%clk 0:02:03]}  Kxg7 {[%clk 0:00:36]} 25. Nd4 {[%clk 0:02:00]}  Bd7 {[%clk 0:00:35]} 26. Re1 {[%clk 0:01:57]}  Rfe8 {[%clk 0:00:35]} 27. h4 {[%clk 0:01:50]}  h5 {[%clk 0:00:33]} 28. Kh2 {[%clk 0:01:25]}  Nc4 {[%clk 0:00:33]} 29. f4 {[%clk 0:01:23]}  Kg8 {[%clk 0:00:15]} 30. Bh3 {[%clk 0:01:19]}  Bxh3 {[%clk 0:00:14]} 31. Kxh3 {[%clk 0:01:20]}  Nb6 {[%clk 0:00:11]} 32. f5 {[%clk 0:01:15]}  Nxd5 {[%clk 0:00:06]} 33. fxg6 {[%clk 0:01:15]}  fxg6 {[%clk 0:00:07]} 34. Qb3 {[%clk 0:01:15]}  Rc5 {[%clk 0:00:07]} 35. Ne6 {[%clk 0:01:15]}  Ra5 {[%clk 0:00:06]} 36. Nc7 {[%clk 0:01:15]}  Rf8 {[%clk 0:00:01]} 37. Nxd5 {[%clk 0:01:14]}  Kh7 {[%clk 0:00:02]} 38. Rxe7+ {[%clk 0:01:13]}  Kh6 {[%clk 0:00:02]} 39. Qe3+ {[%clk 0:01:14]} 1-0


[Site "https://www.chess.com"]

[Event "Titled Tuesday Blitz November 15 Late 2022"]
[White "Besedes, Danilo"]
[Black "Tan, Zhongyi"]
[WhiteFideId "946796"]
[BlackFideId "8603642"]
[WhiteElo "2352"]
[BlackElo "2510"]
[Result "0-1"]
[Round "10"]
[TimeControl "180+1"]
[Date "2022.11.15"]
[WhiteClock "0:00:04"]
[BlackClock "0:00:05"]

1. d4 {[%clk 0:03:00]}  d5 {[%clk 0:02:58]} 2. Nf3 {[%clk 0:03:00]}  Nf6 {[%clk 0:02:57]} 3. Bf4 {[%clk 0:03:00]}  Bf5 {[%clk 0:02:57]} 4. e3 {[%clk 0:02:58]}  e6 {[%clk 0:02:57]} 5. c3 {[%clk 0:02:58]}  c5 {[%clk 0:02:54]} 6. Nbd2 {[%clk 0:02:58]}  Nc6 {[%clk 0:02:53]} 7. h3 {[%clk 0:02:57]}  h6 {[%clk 0:02:51]} 8. Bb5 {[%clk 0:02:56]}  Qb6 {[%clk 0:02:50]} 9. Qa4 {[%clk 0:02:53]}  Be7 {[%clk 0:02:43]} 10. dxc5 {[%clk 0:02:45]}  Bxc5 {[%clk 0:02:41]} 11. Nb3 {[%clk 0:02:41]}  O-O {[%clk 0:02:32]} 12. O-O {[%clk 0:02:37]}  Be7 {[%clk 0:02:26]} 13. Nfd4 {[%clk 0:02:23]}  Nxd4 {[%clk 0:02:25]} 14. cxd4 {[%clk 0:02:21]}  Rfc8 {[%clk 0:02:19]} 15. Rac1 {[%clk 0:02:19]}  Bc2 {[%clk 0:01:43]} 16. f3 {[%clk 0:02:01]}  Nh5 {[%clk 0:01:14]} 17. Bh2 {[%clk 0:01:59]}  Bg5 {[%clk 0:01:14]} 18. f4 {[%clk 0:01:55]}  Be7 {[%clk 0:01:12]} 19. Qa5 {[%clk 0:01:36]}  Nf6 {[%clk 0:01:04]} 20. Qxb6 {[%clk 0:01:08]}  axb6 {[%clk 0:01:05]} 21. Ra1 {[%clk 0:01:03]}  Ne4 {[%clk 0:01:03]} 22. Rfc1 {[%clk 0:00:55]}  Bb4 {[%clk 0:00:39]} 23. Kf1 {[%clk 0:00:19]}  Nd2+ {[%clk 0:00:28]} 24. Ke2 {[%clk 0:00:18]}  Nxb3 {[%clk 0:00:23]} 25. axb3 {[%clk 0:00:18]}  Rxa1 {[%clk 0:00:22]} 26. Rxa1 {[%clk 0:00:18]}  Bxb3 {[%clk 0:00:23]} 27. Bd3 {[%clk 0:00:18]}  Bc4 {[%clk 0:00:20]} 28. Ra7 {[%clk 0:00:16]}  Bxd3+ {[%clk 0:00:14]} 29. Kxd3 {[%clk 0:00:17]}  Rc1 {[%clk 0:00:10]} 30. Rxb7 {[%clk 0:00:17]}  Ba5 {[%clk 0:00:09]} 31. b4 {[%clk 0:00:16]}  Bxb4 {[%clk 0:00:09]} 32. Rxb6 {[%clk 0:00:17]}  Be7 {[%clk 0:00:09]} 33. Rb2 {[%clk 0:00:17]}  g5 {[%clk 0:00:05]} 34. Rc2 {[%clk 0:00:16]}  Ra1 {[%clk 0:00:04]} 35. fxg5 {[%clk 0:00:16]}  Bxg5 {[%clk 0:00:04]} 36. Bg3 {[%clk 0:00:13]}  Kg7 {[%clk 0:00:03]} 37. Bf2 {[%clk 0:00:13]}  Ra3+ {[%clk 0:00:03]} 38. Ke2 {[%clk 0:00:13]}  Kg6 {[%clk 0:00:03]} 39. Rd2 {[%clk 0:00:13]}  h5 {[%clk 0:00:03]} 40. Rd3 {[%clk 0:00:13]}  Ra2+ {[%clk 0:00:03]} 41. Kf3 {[%clk 0:00:14]}  Ra1 {[%clk 0:00:04]} 42. g4 {[%clk 0:00:13]}  h4 {[%clk 0:00:04]} 43. Rb3 {[%clk 0:00:13]}  Ra2 {[%clk 0:00:04]} 44. Rc3 {[%clk 0:00:13]}  f6 {[%clk 0:00:04]} 45. Rb3 {[%clk 0:00:12]}  e5 {[%clk 0:00:04]} 46. dxe5 {[%clk 0:00:12]}  fxe5 {[%clk 0:00:05]} 47. Rb6+ {[%clk 0:00:10]}  Kf7 {[%clk 0:00:05]} 48. Rb7+ {[%clk 0:00:10]}  Ke6 {[%clk 0:00:06]} 49. Rb6+ {[%clk 0:00:10]}  Kd7 {[%clk 0:00:06]} 50. Bxh4 {[%clk 0:00:04]}  Bxh4 {[%clk 0:00:06]} 51. e4 {[%clk 0:00:04]}  d4 {[%clk 0:00:05]} 0-1


[Site "https://www.chess.com"]

[Event "Titled Tuesday Blitz November 15 Late 2022"]
[White "Bluebaum, Matthias"]
[Black "Madaminov, Mukhiddin"]
[WhiteFideId "24651516"]
[BlackFideId "14210703"]
[WhiteElo "2633"]
[BlackElo "2341"]
[Result "1-0"]
[Round "10"]
[TimeControl "180+1"]
[Date "2022.11.15"]
[WhiteClock "0:00:53"]
[BlackClock "0:00:01"]

1. d4 {[%clk 0:03:00]}  Nf6 {[%clk 0:03:00]} 2. c4 {[%clk 0:03:01]}  g6 {[%clk 0:03:00]} 3. Nc3 {[%clk 0:03:01]}  d5 {[%clk 0:03:01]} 4. cxd5 {[%clk 0:03:02]}  Nxd5 {[%clk 0:03:02]} 5. e4 {[%clk 0:03:03]}  Nxc3 {[%clk 0:03:02]} 6. bxc3 {[%clk 0:03:04]}  Bg7 {[%clk 0:03:03]} 7. Nf3 {[%clk 0:03:05]}  c5 {[%clk 0:03:03]} 8. Bb5+ {[%clk 0:03:05]}  Nc6 {[%clk 0:03:02]} 9. O-O {[%clk 0:03:06]}  O-O {[%clk 0:02:47]} 10. Bxc6 {[%clk 0:03:05]}  bxc6 {[%clk 0:02:46]} 11. Qc2 {[%clk 0:03:06]}  Bg4 {[%clk 0:02:11]} 12. Ne5 {[%clk 0:03:05]}  Bd7 {[%clk 0:01:53]} 13. Ba3 {[%clk 0:03:00]}  Bxe5 {[%clk 0:01:46]} 14. dxe5 {[%clk 0:03:00]}  Qa5 {[%clk 0:01:46]} 15. Bc1 {[%clk 0:02:53]}  f5 {[%clk 0:01:38]} 16. exf6 {[%clk 0:02:49]}  exf6 {[%clk 0:01:38]} 17. c4 {[%clk 0:02:41]}  Be6 {[%clk 0:01:34]} 18. Be3 {[%clk 0:02:31]}  Rfd8 {[%clk 0:01:29]} 19. h3 {[%clk 0:02:18]}  Rab8 {[%clk 0:01:28]} 20. Rad1 {[%clk 0:02:10]}  Kf7 {[%clk 0:01:26]} 21. f4 {[%clk 0:02:07]}  f5 {[%clk 0:01:23]} 22. exf5 {[%clk 0:02:01]}  gxf5 {[%clk 0:01:17]} 23. Qe2 {[%clk 0:01:59]}  Rb4 {[%clk 0:01:02]} 24. Bd2 {[%clk 0:01:38]}  Rxd2 {[%clk 0:00:33]} 25. Rxd2 {[%clk 0:01:28]}  Rxc4 {[%clk 0:00:31]} 26. Qh5+ {[%clk 0:01:27]}  Kg7 {[%clk 0:00:31]} 27. Rd3 {[%clk 0:01:28]}  Rd4 {[%clk 0:00:02]} 28. Rg3+ {[%clk 0:01:28]}  Kf8 {[%clk 0:00:03]} 29. Qxh7 {[%clk 0:01:23]}  Bf7 {[%clk 0:00:02]} 30. Qg7+ {[%clk 0:01:21]}  Ke8 {[%clk 0:00:02]} 31. Rb1 {[%clk 0:01:13]}  Qd8 {[%clk 0:00:01]} 32. Re3+ {[%clk 0:00:53]} 1-0


[Site "https://www.chess.com"]

[Event "Titled Tuesday Blitz November 15 Late 2022"]
[White "Bogaudinov, Rushan"]
[Black "Do Nascimento,Christian Almeida"]
[WhiteFideId "4129288"]
[BlackFideId "2143801"]
[WhiteElo "1997"]
[BlackElo "2079"]
[Result "0-1"]
[Round "10"]
[TimeControl "180+1"]
[Date "2022.11.16"]
[WhiteClock "0:00:16"]
[BlackClock "0:00:26"]

1. b3 {[%clk 0:02:59]}  Nf6 {[%clk 0:02:58]} 2. Bb2 {[%clk 0:02:59]}  g6 {[%clk 0:02:59]} 3. g3 {[%clk 0:02:58]}  Bg7 {[%clk 0:02:55]} 4. Bg2 {[%clk 0:02:59]}  O-O {[%clk 0:02:56]} 5. Nf3 {[%clk 0:02:58]}  d5 {[%clk 0:02:56]} 6. d4 {[%clk 0:02:59]}  c5 {[%clk 0:02:54]} 7. O-O {[%clk 0:02:58]}  Nc6 {[%clk 0:02:54]} 8. dxc5 {[%clk 0:02:57]}  Qa5 {[%clk 0:02:50]} 9. Nbd2 {[%clk 0:02:44]}  Qxc5 {[%clk 0:02:48]} 10. c4 {[%clk 0:02:45]}  dxc4 {[%clk 0:02:45]} 11. Nxc4 {[%clk 0:02:44]}  Be6 {[%clk 0:02:45]} 12. Rc1 {[%clk 0:02:43]}  Rfd8 {[%clk 0:02:43]} 13. Qe1 {[%clk 0:02:39]}  Qh5 {[%clk 0:02:37]} 14. Nce5 {[%clk 0:02:30]}  Bd5 {[%clk 0:02:15]} 15. Nxc6 {[%clk 0:02:16]}  Bxc6 {[%clk 0:02:15]} 16. Ne5 {[%clk 0:02:12]}  Bxg2 {[%clk 0:02:05]} 17. Kxg2 {[%clk 0:02:13]}  Ng4 {[%clk 0:02:01]} 18. Nxg4 {[%clk 0:02:13]}  Bxb2 {[%clk 0:01:59]} 19. Rc2 {[%clk 0:02:12]}  Qxg4 {[%clk 0:01:47]} 20. Rxb2 {[%clk 0:02:12]}  Rac8 {[%clk 0:01:45]} 21. Rd2 {[%clk 0:02:08]}  Qe4+ {[%clk 0:01:35]} 22. f3 {[%clk 0:02:07]}  Qe3 {[%clk 0:01:33]} 23. Rxd8+ {[%clk 0:02:03]}  Rxd8 {[%clk 0:01:33]} 24. Qf2 {[%clk 0:01:54]}  Qxf2+ {[%clk 0:01:29]} 25. Rxf2 {[%clk 0:01:53]}  e5 {[%clk 0:01:20]} 26. e4 {[%clk 0:01:52]}  f5 {[%clk 0:01:20]} 27. exf5 {[%clk 0:01:52]}  gxf5 {[%clk 0:01:20]} 28. Re2 {[%clk 0:01:50]}  Re8 {[%clk 0:01:21]} 29. Rc2 {[%clk 0:01:42]}  Re7 {[%clk 0:01:21]} 30. Kf2 {[%clk 0:01:42]}  Kf7 {[%clk 0:01:20]} 31. Ke3 {[%clk 0:01:42]}  Ke6 {[%clk 0:01:20]} 32. Rc5 {[%clk 0:01:41]}  Rd7 {[%clk 0:01:17]} 33. h4 {[%clk 0:01:34]}  h5 {[%clk 0:01:15]} 34. Rc8 {[%clk 0:01:34]}  Rh7 {[%clk 0:01:07]} 35. a4 {[%clk 0:01:22]}  Kd5 {[%clk 0:01:02]} 36. Rf8 {[%clk 0:01:17]}  Ke6 {[%clk 0:01:02]} 37. a5 {[%clk 0:01:14]}  Rg7 {[%clk 0:01:00]} 38. Kf2 {[%clk 0:01:05]}  Rh7 {[%clk 0:01:00]} 39. Ra8 {[%clk 0:01:02]}  a6 {[%clk 0:01:00]} 40. Rd8 {[%clk 0:00:59]}  Rc7 {[%clk 0:00:53]} 41. Rh8 {[%clk 0:00:58]}  Rc2+ {[%clk 0:00:52]} 42. Kg1 {[%clk 0:00:58]}  Rc3 {[%clk 0:00:53]} 43. Kg2 {[%clk 0:00:58]}  Rc2+ {[%clk 0:00:53]} 44. Kh3 {[%clk 0:00:57]}  Rc3 {[%clk 0:00:52]} 45. Rxh5 {[%clk 0:00:55]}  Rxf3 {[%clk 0:00:49]} 46. Rh6+ {[%clk 0:00:54]}  Kd5 {[%clk 0:00:49]} 47. Rb6 {[%clk 0:00:54]}  f4 {[%clk 0:00:49]} 48. h5 {[%clk 0:00:50]}  Rxg3+ {[%clk 0:00:49]} 49. Kh2 {[%clk 0:00:46]}  Rg5 {[%clk 0:00:47]} 50. h6 {[%clk 0:00:45]}  f3 {[%clk 0:00:46]} 51. Kh3 {[%clk 0:00:35]}  e4 {[%clk 0:00:42]} 52. Kh4 {[%clk 0:00:33]}  Rg1 {[%clk 0:00:42]} 53. Rf6 {[%clk 0:00:30]}  Ke5 {[%clk 0:00:38]} 54. Rf8 {[%clk 0:00:28]}  Kd4 {[%clk 0:00:38]} 55. Kh5 {[%clk 0:00:26]}  Ke3 {[%clk 0:00:29]} 56. h7 {[%clk 0:00:22]}  f2 {[%clk 0:00:28]} 57. Kh6 {[%clk 0:00:12]}  f1=Q {[%clk 0:00:23]} 58. Rxf1 {[%clk 0:00:12]}  Rxf1 {[%clk 0:00:23]} 59. h8=Q {[%clk 0:00:12]}  Rh1+ {[%clk 0:00:23]} 60. Kg7 {[%clk 0:00:13]}  Rxh8 {[%clk 0:00:24]} 61. Kxh8 {[%clk 0:00:14]}  Kd4 {[%clk 0:00:25]} 62. Kg7 {[%clk 0:00:15]}  e3 {[%clk 0:00:25]} 63. Kf6 {[%clk 0:00:16]}  e2 {[%clk 0:00:26]} 0-1


[Site "https://www.chess.com"]

[Event "Titled Tuesday Blitz November 15 Late 2022"]
[White "Brown, Andrew"]
[Black "Gonzalez, Francisco Silva"]
[WhiteFideId "3206513"]
[BlackFideId "1512285"]
[WhiteElo "2245"]
[BlackElo "2159"]
[Result "1-0"]
[Round "10"]
[TimeControl "180+1"]
[Date "2022.11.16"]
[WhiteClock "0:00:14"]
[BlackClock "0:00:09"]

1. d4 {[%clk 0:03:00]}  Nf6 {[%clk 0:02:56]} 2. c4 {[%clk 0:03:01]}  e6 {[%clk 0:02:55]} 3. g3 {[%clk 0:03:01]}  d5 {[%clk 0:02:46]} 4. Bg2 {[%clk 0:03:01]}  dxc4 {[%clk 0:02:25]} 5. Nf3 {[%clk 0:03:01]}  Nc6 {[%clk 0:02:24]} 6. O-O {[%clk 0:03:02]}  Rb8 {[%clk 0:02:24]} 7. a4 {[%clk 0:02:58]}  b6 {[%clk 0:02:23]} 8. Na3 {[%clk 0:02:55]}  Bxa3 {[%clk 0:02:18]} 9. Rxa3 {[%clk 0:02:54]}  O-O {[%clk 0:02:18]} 10. Bf4 {[%clk 0:02:45]}  Ba6 {[%clk 0:02:17]} 11. b3 {[%clk 0:02:03]}  cxb3 {[%clk 0:02:14]} 12. Rxb3 {[%clk 0:02:01]}  Nd5 {[%clk 0:02:14]} 13. Bd2 {[%clk 0:01:51]}  Nf6 {[%clk 0:01:45]} 14. Bc3 {[%clk 0:01:38]}  Ne4 {[%clk 0:01:35]} 15. Ba1 {[%clk 0:01:38]}  Na5 {[%clk 0:01:35]} 16. Re3 {[%clk 0:01:34]}  Nf6 {[%clk 0:01:20]} 17. Ne5 {[%clk 0:01:33]}  Nd5 {[%clk 0:01:20]} 18. Ra3 {[%clk 0:01:22]}  Qe7 {[%clk 0:01:18]} 19. Qc1 {[%clk 0:01:18]}  f6 {[%clk 0:01:12]} 20. Nd3 {[%clk 0:01:09]}  Nc4 {[%clk 0:01:08]} 21. Ra2 {[%clk 0:01:04]}  Nb4 {[%clk 0:01:04]} 22. Nxb4 {[%clk 0:01:03]}  Qxb4 {[%clk 0:01:02]} 23. Bc3 {[%clk 0:00:52]}  Qb3 {[%clk 0:00:51]} 24. Ra1 {[%clk 0:00:44]}  Rbd8 {[%clk 0:00:45]} 25. Rd1 {[%clk 0:00:35]}  e5 {[%clk 0:00:37]} 26. dxe5 {[%clk 0:00:28]}  Nxe5 {[%clk 0:00:36]} 27. Bxe5 {[%clk 0:00:23]}  Rxd1+ {[%clk 0:00:32]} 28. Qxd1 {[%clk 0:00:23]}  Qxd1+ {[%clk 0:00:32]} 29. Rxd1 {[%clk 0:00:23]}  fxe5 {[%clk 0:00:32]} 30. Rd7 {[%clk 0:00:22]}  Rc8 {[%clk 0:00:18]} 31. Bd5+ {[%clk 0:00:20]}  Kh8 {[%clk 0:00:19]} 32. e4 {[%clk 0:00:19]}  h6 {[%clk 0:00:16]} 33. f4 {[%clk 0:00:19]}  exf4 {[%clk 0:00:14]} 34. e5 {[%clk 0:00:19]}  fxg3 {[%clk 0:00:13]} 35. e6 {[%clk 0:00:19]}  Re8 {[%clk 0:00:11]} 36. e7 {[%clk 0:00:19]}  Kh7 {[%clk 0:00:11]} 37. Bf7 {[%clk 0:00:19]}  Rxe7 {[%clk 0:00:10]} 38. Rxe7 {[%clk 0:00:19]}  c5 {[%clk 0:00:11]} 39. hxg3 {[%clk 0:00:19]}  Bd3 {[%clk 0:00:09]} 40. Rxa7 {[%clk 0:00:18]}  h5 {[%clk 0:00:08]} 41. Rb7 {[%clk 0:00:17]}  b5 {[%clk 0:00:08]} 42. axb5 {[%clk 0:00:17]}  c4 {[%clk 0:00:08]} 43. b6 {[%clk 0:00:17]}  Be4 {[%clk 0:00:08]} 44. Rc7 {[%clk 0:00:18]}  c3 {[%clk 0:00:08]} 45. Rxc3 {[%clk 0:00:17]}  Kh6 {[%clk 0:00:09]} 46. Rc7 {[%clk 0:00:15]}  g6 {[%clk 0:00:09]} 47. b7 {[%clk 0:00:15]}  Bxb7 {[%clk 0:00:09]} 48. Rxb7 {[%clk 0:00:16]}  h4 {[%clk 0:00:09]} 49. gxh4 {[%clk 0:00:15]}  Kh5 {[%clk 0:00:09]} 50. Rb4 {[%clk 0:00:14]}  Kh6 {[%clk 0:00:09]} 51. Rg4 {[%clk 0:00:14]}  Kg7 {[%clk 0:00:09]} 52. Bxg6 {[%clk 0:00:13]}  Kh6 {[%clk 0:00:10]} 53. h5 {[%clk 0:00:14]}  Kg7 {[%clk 0:00:11]} 54. Kf2 {[%clk 0:00:13]}  Kf6 {[%clk 0:00:11]} 55. Kf3 {[%clk 0:00:13]}  Ke5 {[%clk 0:00:12]} 56. h6 {[%clk 0:00:13]}  Kf6 {[%clk 0:00:13]} 57. Be4 {[%clk 0:00:13]}  Ke5 {[%clk 0:00:12]} 58. h7 {[%clk 0:00:13]}  Kd4 {[%clk 0:00:12]} 59. h8=Q+ {[%clk 0:00:14]}  Kc4 {[%clk 0:00:13]} 60. Bg6+ {[%clk 0:00:12]}  Kb3 {[%clk 0:00:13]} 61. Qd4 {[%clk 0:00:12]}  Ka3 {[%clk 0:00:13]} 62. Ke4 {[%clk 0:00:12]}  Kb3 {[%clk 0:00:11]} 63. Rg3+ {[%clk 0:00:13]}  Ka2 {[%clk 0:00:09]} 64. Qf2+ {[%clk 0:00:14]} 1-0


[Site "https://www.chess.com"]

[Event "Titled Tuesday Blitz November 15 Late 2022"]
[White "Burke, Paul"]
[Black "Andronescu, Madalin"]
[WhiteFideId "2605767"]
[BlackFideId "1217275"]
[WhiteElo "1812"]
[BlackElo "1946"]
[Result "1-0"]
[Round "10"]
[TimeControl "180+1"]
[Date "2022.11.16"]
[WhiteClock "0:00:11"]
[BlackClock "0:00:01"]

1. e4 {[%clk 0:02:58]}  c5 {[%clk 0:02:59]} 2. d4 {[%clk 0:02:57]}  cxd4 {[%clk 0:02:59]} 3. c3 {[%clk 0:02:58]}  dxc3 {[%clk 0:02:59]} 4. Nxc3 {[%clk 0:02:58]}  Nc6 {[%clk 0:02:57]} 5. Nf3 {[%clk 0:02:58]}  d6 {[%clk 0:02:56]} 6. Bc4 {[%clk 0:02:58]}  e6 {[%clk 0:02:55]} 7. O-O {[%clk 0:02:57]}  Nf6 {[%clk 0:02:56]} 8. Qe2 {[%clk 0:02:55]}  Be7 {[%clk 0:02:56]} 9. Rd1 {[%clk 0:02:55]}  Bd7 {[%clk 0:02:51]} 10. Bg5 {[%clk 0:02:52]}  O-O {[%clk 0:02:50]} 11. Bxf6 {[%clk 0:02:52]}  Bxf6 {[%clk 0:02:50]} 12. Rxd6 {[%clk 0:02:51]}  Bxc3 {[%clk 0:02:27]} 13. bxc3 {[%clk 0:02:50]}  Qc7 {[%clk 0:02:27]} 14. Rad1 {[%clk 0:02:48]}  Rad8 {[%clk 0:02:26]} 15. e5 {[%clk 0:02:41]}  Na5 {[%clk 0:02:14]} 16. Bd3 {[%clk 0:02:37]}  Bc6 {[%clk 0:02:07]} 17. Ng5 {[%clk 0:02:37]}  g6 {[%clk 0:02:04]} 18. Qg4 {[%clk 0:02:17]}  h5 {[%clk 0:01:31]} 19. Qe2 {[%clk 0:02:00]}  Bd5 {[%clk 0:01:17]} 20. Ne4 {[%clk 0:01:45]}  Rxd6 {[%clk 0:00:58]} 21. exd6 {[%clk 0:01:43]}  Qd8 {[%clk 0:00:45]} 22. Qf3 {[%clk 0:01:30]}  Kg7 {[%clk 0:00:40]} 23. c4 {[%clk 0:01:19]}  Bc6 {[%clk 0:00:38]} 24. Qe2 {[%clk 0:01:12]}  f5 {[%clk 0:00:26]} 25. Ng3 {[%clk 0:01:11]}  Qf6 {[%clk 0:00:17]} 26. c5 {[%clk 0:01:02]}  e5 {[%clk 0:00:16]} 27. Bb1 {[%clk 0:00:54]}  e4 {[%clk 0:00:16]} 28. Nf1 {[%clk 0:00:46]}  Rd8 {[%clk 0:00:15]} 29. Ne3 {[%clk 0:00:40]}  b6 {[%clk 0:00:15]} 30. h3 {[%clk 0:00:40]}  bxc5 {[%clk 0:00:14]} 31. Qa6 {[%clk 0:00:34]}  Rxd6 {[%clk 0:00:08]} 32. Rxd6 {[%clk 0:00:30]}  Qxd6 {[%clk 0:00:08]} 33. Qxa5 {[%clk 0:00:30]}  f4 {[%clk 0:00:08]} 34. Qxa7+ {[%clk 0:00:29]}  Kh6 {[%clk 0:00:06]} 35. Nf1 {[%clk 0:00:28]}  e3 {[%clk 0:00:06]} 36. Qa6 {[%clk 0:00:21]}  exf2+ {[%clk 0:00:04]} 37. Kxf2 {[%clk 0:00:20]}  Qd4+ {[%clk 0:00:04]} 38. Ke1 {[%clk 0:00:17]}  Bxg2 {[%clk 0:00:04]} 39. Qd3 {[%clk 0:00:12]}  Qe5+ {[%clk 0:00:01]} 40. Kd2 {[%clk 0:00:11]} 1-0


[Site "https://www.chess.com"]